bitfinex/quotes_ETHUSD_20250930
["timestamp","ask_amount","ask_price","bid_price","bid_amount"]
[1759263183131,2.40604398,4156.2,4156.1,0.002]
[1759263183452,2.40604398,4156.2,4155.3,0.002]
[1759263183453,2.40650719,4155.4,4155.3,0.002]
[1759263183934,5.51070719,4155.4,4155.3,0.002]
[1759263184108,5.05420719,4155.4,4155.3,0.002]
[1759263184314,5.05420719,4155.4,4155.3,2.795]
[1759263185152,4.80650719,4155.4,4155.3,2.795]
[1759263185339,2.4,4155.4,4155.3,2.795]
[1759263185522,4.80650719,4155.4,4155.3,2.795]
[1759263185920,4.92650719,4155.4,4155.3,2.795]
[1759263189820,4.92650719,4155.4,4155.3,0.002]
[1759263190025,5.87124793,4155.4,4155.3,0.117]
[1759263190755,2.76704793,4155.4,4155.3,0.117]
[1759263190959,2.52650719,4155.4,4155.3,0.117]
[1759263193657,3.22100719,4155.4,4155.3,2.792]
[1759263202151,2.75850719,4155.4,4155.3,2.792]
[1759263203161,2.52650719,4155.4,4155.3,2.792]
[1759263204151,2.77490719,4155.4,4155.3,2.792]
[1759263205066,5.62280719,4155.4,4155.3,0.002]
[1759263205265,5.62280719,4155.4,4155.3,2.79]
[1759263205956,6.41480719,4155.4,4155.3,2.79]
[1759263206759,5.62280719,4155.4,4155.3,2.79]
[1759263206965,2.52650719,4155.4,4155.3,2.79]
[1759263207165,2.40650719,4155.4,4155.3,2.79]
[1759263213321,2.40640504,4155.6,4155.3,3.4675]
[1759263213465,0.001,4155.7,4155.4,1.02425]
[1759263213896,2.40639419,4155.6,4155.5,0.6775]
[1759263214902,2.40639419,4155.6,4155.3,2.79]
[1759263215199,2.40650719,4155.4,4155.3,3.2355]
[1759263215372,2.40646553,4155.5,4155.3,3.2355]
[1759263215572,2.40646553,4155.5,4155.4,0.4455]
[1759263215772,2.40646553,4155.5,4155.4,0.6775]
[1759263216202,2.40646553,4155.5,4155.3,0.002]
[1759263216504,2.40646553,4155.5,4155.4,2.788]
[1759263216505,2.40644928,4155.5,4155.4,2.788]
[1759263216798,2.40650719,4155.4,4155.3,0.002]
[1759263217100,2.40650719,4155.4,4155.3,2.79]
[1759263217101,2.77490719,4155.4,4155.3,2.79]
[1759263217889,2.52650719,4155.4,4155.3,2.79]
[1759263218079,2.40650719,4155.4,4155.3,2.79]
[1759263218278,2.52650719,4155.4,4155.3,3.4675]
[1759263218675,2.40650719,4155.4,4155.3,3.4675]
[1759263220528,2.40650719,4155.4,4155.3,2.79]
[1759263221131,2.52646437,4155.5,4155.3,2.79]
[1759263221431,2.40650719,4155.4,4155.3,2.79]
[1759263222035,2.40650719,4155.4,4155.3,3.4806]
[1759263224234,0.12,4155.5,4155.3,3.4806]
[1759263224441,2.40650719,4155.4,4155.3,3.4806]
[1759263224939,2.89989705,4155.4,4155.3,0.002]
[1759263225108,5.49020719,4155.4,4155.3,0.002]
[1759263225307,5.49020719,4155.4,4155.0,2.502]
[1759263225308,2.40668094,4155.1,4155.0,2.502]
[1759263225514,5.59879679,4154.9,4154.8,0.002]
[1759263225921,6.28249679,4154.9,4154.8,0.002]
[1759263226242,5.49049679,4154.9,4154.8,0.002]
[1759263226408,5.49049679,4154.9,4154.8,2.789]
[1759263228122,4.80679679,4154.9,4154.8,2.789]
[1759263228554,5.03659679,4154.9,4154.8,2.789]
[1759263228847,5.49049679,4154.9,4154.8,2.789]
[1759263229016,4.80679679,4154.9,4154.8,2.789]
[1759263229421,5.03659679,4154.9,4154.8,2.789]
[1759263230625,5.49049679,4154.9,4154.8,2.789]
[1759263231352,5.03659679,4154.9,4154.8,2.789]
[1759263231553,5.49049679,4154.9,4154.8,2.789]
[1759263231741,5.03659679,4154.9,4154.8,2.789]
[1759263232627,4.80679679,4154.9,4154.8,2.789]
[1759263233025,5.49049679,4154.9,4154.8,2.789]
[1759263234934,6.28249679,4154.9,4154.8,0.002]
[1759263235136,2.40702852,4154.5,4154.4,0.002]
[1759263235433,4.92702852,4154.5,4154.4,0.002]
[1759263235757,5.61072852,4154.5,4154.4,0.002]
[1759263236353,5.61072852,4154.5,4154.4,2.789]
[1759263236556,5.15682852,4154.5,4154.4,2.789]
[1759263238035,4.92702852,4154.5,4154.4,2.789]
[1759263240253,4.92702852,4154.5,4154.4,3.0273]
[1759263240559,4.92702852,4154.5,4154.4,2.789]
[1759263244353,4.92702852,4154.5,4154.4,3.0273]
[1759263244563,4.92702852,4154.5,4154.4,3.4796]
[1759263245339,4.92702852,4154.5,4154.4,2.789]
[1759263250075,4.92702852,4154.5,4154.4,3.4796]
[1759263250294,4.92702852,4154.5,4154.4,3.0273]
[1759263250471,0.12,4154.5,4154.4,3.4796]
[1759263250802,2.52702852,4154.5,4154.4,3.4796]
[1759263251899,2.52702852,4154.5,4154.4,2.789]
[1759263252405,2.52702852,4154.5,4154.4,3.0309]
[1759263253605,2.52702852,4154.5,4154.4,2.789]
[1759263256192,2.52702852,4154.5,4154.4,3.0309]
[1759263256402,2.52702852,4154.5,4154.4,2.789]
[1759263257924,5.62262852,4154.5,4154.4,2.788]
[1759263261331,4.92702852,4154.5,4154.4,2.788]
[1759263261536,5.16882852,4154.5,4154.4,2.788]
[1759263261732,5.62262852,4154.5,4154.4,2.788]
[1759263262839,5.16882852,4154.5,4154.4,2.788]
[1759263262993,4.92702852,4154.5,4154.4,2.788]
[1759263263593,4.92702852,4154.5,4154.4,3.4636]
[1759263264232,4.92702852,4154.5,4154.4,3.0322]
[1759263266709,4.92702852,4154.5,4154.4,3.4636]
[1759263267944,0.12,4154.5,4154.4,3.4636]
[1759263268113,2.52702852,4154.5,4154.4,3.4636]
[1759263270615,2.52702852,4154.5,4154.4,3.0322]
[1759263271129,2.52702852,4154.5,4154.4,2.788]
[1759263271329,2.52702852,4154.5,4154.4,3.0322]
[1759263272144,2.52702852,4154.5,4154.4,2.788]
[1759263272344,2.52702852,4154.5,4154.4,0.002]
[1759263272552,2.52702852,4154.5,4154.4,2.788]
[1759263275824,0.12,4154.5,4154.4,3.4636]
[1759263276024,2.52702852,4154.5,4154.4,3.4636]
[1759263276223,0.12,4154.5,4154.4,3.4636]
[1759263276652,2.52702852,4154.5,4154.4,3.4636]
[1759263277465,0.12,4154.5,4154.4,3.4636]
[1759263277821,2.52702852,4154.5,4154.4,3.4636]
[1759263279151,0.12,4154.5,4154.4,3.4636]
[1759263279470,2.52702852,4154.5,4154.4,3.4636]
[1759263280238,0.12,4154.5,4154.4,3.4636]
[1759263281134,0.001,4154.8,4154.4,3.4636]
[1759263281375,0.001,4154.8,4154.5,0.81487028]
[1759263281689,0.001,4154.8,4154.6,2.785]
[1759263281982,0.001,4154.8,4154.6,3.4558]
[1759263282139,0.001,4154.8,4154.7,0.6708]
[1759263282331,0.001,4154.8,4154.7,4.10865194]
[1759263282529,0.001,4154.8,4154.7,4.08458282]
[1759263282736,0.001,4154.8,4154.7,1.67767017]
[1759263283569,0.001,4154.8,4154.7,4.08458282]
[1759263283866,0.001,4154.8,4154.7,1.67767017]
[1759263285354,0.001,4154.8,4154.7,0.7908]
[1759263286561,0.001,4154.8,4154.7,0.12]
[1759263287160,0.001,4154.8,4154.7,0.361]
[1759263287900,0.001,4154.8,4154.7,0.7908]
[1759263292187,0.001,4154.8,4154.7,3.19771265]
[1759263292360,0.001,4154.8,4154.7,1.68966379]
[1759263293085,0.001,4154.8,4154.7,1.01886379]
[1759263293382,0.001,4154.8,4154.7,1.68966379]
[1759263293546,0.001,4154.8,4154.7,4.09657644]
[1759263293750,0.001,4154.8,4154.7,1.68966379]
[1759263294203,0.001,4154.8,4154.7,0.7908]
[1759263295603,0.001,4154.8,4154.7,5.406]
[1759263296329,0.001,4154.8,4154.7,6.0768]
[1759263297389,0.001,4154.8,4154.7,5.647]
[1759263297601,0.001,4154.8,4154.7,5.406]
[1759263298505,0.001,4154.8,4154.7,2.903]
[1759263298816,3.11255472,4154.8,4154.7,5.406]
[1759263298998,3.11255472,4154.8,4154.7,5.286]
[1759263299386,2.40697058,4154.6,4154.5,2.503]
[1759263299719,3.11167058,4154.6,4154.5,5.286]
[1759263300023,0.7047,4154.6,4154.5,5.286]
[1759263300223,0.2318,4154.6,4154.5,5.286]
[1759263300721,2.63877058,4154.6,4154.5,5.286]
[1759263301082,3.11167058,4154.6,4154.5,5.286]
[1759263301278,0.121,4154.8,4154.5,5.286]
[1759263301480,0.3528,4154.8,4154.5,5.286]
[1759263301689,2.63876039,4154.7,4154.5,5.286]
[1759263301895,0.2318,4154.7,4154.5,5.286]
[1759263302215,0.121,4154.8,4154.5,5.9568]
[1759263302391,0.121,4154.8,4154.5,5.286]
[1759263303086,2.40692603,4154.7,4154.6,5.285]
[1759263303329,0.3528,4154.8,4154.6,5.285]
[1759263303695,2.75969392,4154.8,4154.6,5.285]
[1759263304718,2.75967307,4154.8,4154.6,5.285]
[1759263305120,0.3528,4154.8,4154.6,5.285]
[1759263305321,2.75966257,4154.8,4154.6,5.285]
[1759263306003,0.3528,4154.8,4154.6,5.285]
[1759263306201,0.121,4154.8,4154.6,5.285]
[1759263306415,0.001,4154.8,4154.7,0.69486912]
[1759263306815,0.001,4154.8,4154.7,0.02406912]
[1759263306995,0.001,4154.8,4154.7,0.69486912]
[1759263307696,0.001,4154.8,4154.7,0.81486912]
[1759263308005,0.001,4154.8,4154.7,0.7908]
[1759263308616,0.001,4154.8,4154.7,0.361]
[1759263308821,0.001,4154.8,4154.7,0.12]
[1759263309501,0.001,4154.8,4154.7,0.7908]
[1759263309695,0.001,4154.8,4154.7,1.6392786]
[1759263310234,0.001,4154.8,4154.7,4.07026037]
[1759263310596,0.001,4154.8,4154.7,9.97552437]
[1759263310831,0.001,4154.8,4154.7,9.95145525]
[1759263311227,0.001,4154.8,4154.7,9.34740025]
[1759263311833,0.001,4154.8,4154.7,7.69698225]
[1759263313130,0.001,4154.8,4154.7,7.03007125]
[1759263314107,0.001,4154.8,4154.7,31.55243625]
[1759263314432,0.001,4154.8,4154.7,27.47811225]
[1759263314630,0.001,4154.8,4154.7,27.70570768]
[1759263314801,0.001,4154.8,4154.7,25.23333768]
[1759263314998,0.001,4154.8,4154.7,20.62443368]
[1759263315229,0.001,4154.8,4154.7,19.63248768]
[1759263315528,0.001,4154.8,4154.7,12.38893968]
[1759263315731,0.001,4154.8,4154.7,13.18093968]
[1759263316137,0.001,4154.8,4154.7,35.24735768]
[1759263316814,0.001,4155.3,4155.2,2.40662302]
[1759263317016,0.001,4155.3,4155.2,16.05650099]
[1759263317341,0.001,4155.3,4155.2,15.92244399]
[1759263317636,0.001,4155.3,4155.2,16.0187475]
[1759263318122,0.001,4155.3,4155.2,26.2925345]
[1759263318328,0.001,4155.3,4155.2,24.3586295]
[1759263318634,0.001,4155.3,4155.2,22.5772185]
[1759263319010,0.001,4155.3,4155.2,17.5361575]
[1759263319204,0.001,4155.3,4155.2,13.9395095]
[1759263319409,0.001,4155.3,4155.2,11.5156615]
[1759263320039,0.6798,4155.3,4155.2,2.502]
[1759263320239,0.6798,4155.3,4155.2,5.282]
[1759263321142,0.2322,4155.3,4155.2,5.282]
[1759263321530,0.001,4155.3,4155.2,5.282]
[1759263323810,0.6798,4155.3,4155.2,5.282]
[1759263324450,0.001,4155.3,4155.2,7.68862302]
[1759263324640,0.001,4155.3,4155.2,8.45748532]
[1759263325220,0.001,4155.3,4155.2,14.16378832]
[1759263325425,0.001,4155.3,4155.2,14.26010342]
[1759263326150,0.001,4155.3,4155.2,28.46096142]
[1759263326455,0.001,4155.3,4155.2,27.69928942]
[1759263327040,0.001,4155.3,4155.2,13.51429442]
[1759263327244,0.001,4155.3,4155.2,13.22170942]
[1759263327447,0.001,4155.3,4155.2,12.25414442]
[1759263327642,0.001,4155.3,4155.2,10.99615142]
[1759263327968,0.2322,4155.3,4155.2,7.68762302]
[1759263328150,0.6798,4155.3,4155.2,5.281]
[1759263328530,0.6798,4155.3,4155.2,7.68762302]
[1759263328858,0.001,4155.3,4155.2,7.68762302]
[1759263329057,0.001,4155.3,4155.2,8.6970591]
[1759263330142,0.001,4155.3,4155.2,8.8170591]
[1759263330327,0.001,4155.3,4155.2,9.5085591]
[1759263330530,0.001,4155.3,4155.2,9.0545591]
[1759263330766,0.001,4155.3,4155.2,8.8170591]
[1759263331782,0.001,4155.3,4155.2,9.0545591]
[1759263332193,0.001,4155.7,4155.6,2.40639137]
[1759263332491,0.001,4155.7,4155.6,35.32845528]
[1759263332678,0.001,4155.7,4155.6,35.72983037]
[1759263333058,0.001,4155.7,4155.6,35.82613132]
[1759263333464,0.001,4155.7,4155.6,35.85643332]
[1759263333665,0.001,4155.7,4155.6,36.93916175]
[1759263334356,0.001,4155.7,4155.6,38.38602975]
[1759263334560,0.001,4155.7,4155.6,37.05271975]
[1759263335470,0.001,4155.7,4155.6,38.48949775]
[1759263336458,0.001,4155.7,4155.6,38.00636075]
[1759263336658,0.001,4155.7,4155.6,37.55686475]
[1759263337592,0.001,4155.7,4155.6,40.19764975]
[1759263337795,0.001,4155.7,4155.6,26.34932575]
[1759263338471,0.001,4155.7,4155.6,36.90419975]
[1759263339511,0.001,4155.7,4155.6,40.88949775]
[1759263339694,0.001,4155.7,4155.6,40.19187075]
[1759263339878,0.001,4155.7,4155.6,35.40016575]
[1759263340705,0.001,4155.7,4155.6,39.55930275]
[1759263340874,0.001,4155.7,4155.6,37.54605075]
[1759263341079,0.001,4155.7,4155.6,29.09618675]
[1759263341586,0.001,4155.7,4155.6,38.91155575]
[1759263341769,0.001,4155.7,4155.6,34.79513675]
[1759263341974,0.001,4155.7,4155.6,34.09015975]
[1759263342188,0.001,4155.7,4155.6,31.77564675]
[1759263342399,0.001,4155.7,4155.6,30.17157275]
[1759263343518,0.2508,4155.7,4155.6,10.19699775]
[1759263343701,0.2508,4155.7,4155.6,12.02969232]
[1759263344009,0.001,4155.7,4155.6,30.03745132]
[1759263344306,0.001,4155.7,4155.6,29.03745532]
[1759263344809,0.001,4155.7,4155.6,30.33839032]
[1759263345205,0.001,4155.7,4155.6,30.77459032]
[1759263345382,0.001,4155.7,4155.6,30.44611275]
[1759263345589,0.001,4155.7,4155.6,31.00380775]
[1759263345888,0.001,4155.7,4155.6,30.11493575]
[1759263346579,0.001,4155.7,4155.6,14.42699775]
[1759263347129,0.001,4155.7,4155.6,34.37629575]
[1759263347319,0.001,4155.7,4155.6,34.98541575]
[1759263347630,0.001,4155.7,4155.6,34.36502875]
[1759263347804,0.001,4155.7,4155.6,14.42699775]
[1759263348312,0.001,4155.7,4155.6,34.30731875]
[1759263348517,0.001,4155.7,4155.6,34.56591875]
[1759263348732,0.001,4155.7,4155.6,28.10270275]
[1759263349103,0.001,4155.7,4155.6,27.75642875]
[1759263349498,0.2508,4155.7,4155.6,27.75642875]
[1759263349900,0.001,4155.7,4155.6,27.75642875]
[1759263350793,0.001,4155.7,4155.6,29.30372575]
[1759263351027,0.2508,4155.7,4155.6,29.05758375]
[1759263351735,0.2508,4155.7,4155.6,15.01928795]
[1759263351945,0.6888,4155.7,4155.6,7.127]
[1759263352506,0.6888,4155.7,4155.6,9.53339137]
[1759263353012,0.6888,4155.7,4155.6,7.127]
[1759263355695,0.6888,4155.7,4155.6,2.897]
[1759263357301,0.001,4155.7,4155.6,5.30339137]
[1759263357729,0.001,4155.7,4155.6,6.09943697]
[1759263357999,0.001,4155.7,4155.6,6.34803697]
[1759263358240,0.001,4155.7,4155.6,18.24025697]
[1759263358546,0.001,4155.7,4155.6,16.13053397]
[1759263358717,0.001,4155.7,4155.6,15.82594497]
[1759263360433,0.001,4155.7,4155.6,16.51074497]
[1759263361109,0.001,4155.7,4155.6,31.58004197]
[1759263361456,0.001,4156.6,4156.5,2.40587032]
[1759263361607,0.001,4156.6,4156.5,13.38863135]
[1759263361803,0.001,4156.6,4156.5,13.16244635]
[1759263362206,0.001,4156.6,4156.5,13.54015535]
[1759263363221,0.001,4156.6,4156.5,9.29825735]
[1759263363435,0.001,4156.6,4156.5,31.82133435]
[1759263363642,0.001,4156.6,4156.5,27.45411735]
[1759263363936,0.001,4156.6,4156.5,27.11449135]
[1759263364141,0.001,4156.6,4156.5,27.30322735]
[1759263364836,0.001,4156.6,4156.5,22.89001835]
[1759263365008,0.001,4156.6,4156.5,22.37701835]
[1759263365210,0.001,4156.6,4156.5,23.45512635]
[1759263365633,0.001,4156.6,4156.5,23.89312635]
[1759263366042,0.001,4156.6,4156.5,21.37907335]
[1759263366209,0.001,4156.6,4156.5,26.26075235]
[1759263366621,0.001,4156.6,4156.5,28.66075235]
[1759263367141,2.4,4158.8,4156.5,28.66075235]
[1759263367142,0.2498,4158.1,4157.9,2.40503533]
[1759263367341,0.2498,4158.1,4158.0,5.275]
[1759263367718,0.6878,4158.1,4158.0,5.275]
[1759263370123,0.6878,4158.1,4158.0,2.501]
[1759263370325,3.09274456,4158.1,4158.0,5.275]
[1759263370923,0.6878,4158.1,4158.0,5.275]
[1759263371119,3.09274456,4158.1,4158.0,5.275]
[1759263371542,0.6878,4158.1,4158.0,5.275]
[1759263371731,0.12,4158.3,4158.0,5.275]
[1759263371932,0.2314,4158.2,4158.0,5.275]
[1759263372240,0.7006,4158.1,4158.0,5.275]
[1759263373061,3.10554456,4158.1,4158.0,5.275]
[1759263373411,3.22554456,4158.1,4158.0,5.275]
[1759263374436,3.22654456,4158.1,4158.0,5.275]
[1759263374753,5.62654456,4158.1,4158.0,2.501]
[1759263374921,5.62654456,4158.1,4156.6,2.501]
[1759263374922,2.40575456,4156.7,4156.6,2.501]
[1759263375122,3.10635456,4156.7,4156.6,2.501]
[1759263376215,3.10635456,4156.7,4156.6,5.274]
[1759263376889,2.40650719,4155.4,4155.3,0.002]
[1759263377246,3.10710719,4155.4,4155.3,0.002]
[1759263377595,0.7006,4155.4,4155.3,0.002]
[1759263378093,3.10710719,4155.4,4155.3,2.775]
[1759263378245,2.63790719,4155.4,4155.3,2.775]
[1759263378447,3.08770719,4155.4,4155.3,2.775]
[1759263378648,3.20770719,4155.4,4155.3,2.775]
[1759263385493,2.63860719,4155.4,4155.3,2.775]
[1759263387476,0.2321,4156.0,4155.3,2.79906565]
[1759263387677,0.2321,4156.3,4155.3,2.79906565]
[1759263388005,2.40622988,4155.9,4155.4,0.7115]
[1759263388204,0.2321,4156.3,4155.5,4.08565656]
[1759263388387,2.40606383,4156.2,4155.6,0.02406391]
[1759263388583,2.40606383,4156.2,4155.7,2.773]
[1759263388808,2.63816383,4156.2,4155.7,2.773]
[1759263389108,2.40627556,4155.8,4155.7,2.773]
[1759263389307,2.40623359,4155.9,4155.7,2.773]
[1759263389676,2.40627556,4155.8,4155.7,2.773]
[1759263390708,2.40623704,4155.9,4155.7,2.773]
[1759263390905,0.2321,4156.1,4155.7,2.773]
[1759263391107,2.40621838,4155.9,4155.7,2.773]
[1759263391605,2.40614642,4156.1,4155.7,3.0183]
[1759263391910,2.40616567,4156.0,4155.7,3.0183]
[1759263392674,0.2321,4156.4,4155.7,3.0183]
[1759263392874,2.40598609,4156.3,4155.7,3.4845]
[1759263393810,2.40620507,4156.0,4155.7,3.4845]
[1759263394005,2.40623563,4155.9,4155.7,3.4845]
[1759263394410,2.40617606,4156.0,4155.7,3.4845]
[1759263395184,2.40611468,4156.1,4155.7,3.4845]
[1759263395511,2.40685253,4156.6,4156.0,0.12]
[1759263395715,0.6829,4156.6,4156.1,2.773]
[1759263395907,0.6819,4156.5,4156.2,2.772]
[1759263396106,2.40625117,4155.9,4155.6,0.12]
[1759263396280,2.40617349,4156.0,4155.7,2.772]
[1759263396481,0.2321,4155.9,4155.7,2.772]
[1759263396702,2.4061221,4156.1,4155.7,2.772]
[1759263396886,0.3521,4156.2,4155.8,0.02406275]
[1759263397095,0.12,4156.2,4155.8,0.26936275]
[1759263397711,2.40614714,4156.1,4155.9,0.2453]
[1759263397893,2.40614714,4156.1,4156.0,2.772]
[1759263398097,2.52605114,4156.2,4156.0,2.772]
[1759263398415,2.52606893,4156.2,4156.0,2.772]
[1759263399431,0.12,4156.2,4156.0,2.772]
[1759263399786,2.52606343,4156.2,4156.0,2.772]
[1759263399984,0.12,4156.4,4156.1,0.2453]
[1759263400290,2.40599039,4156.3,4156.1,0.2453]
[1759263400619,0.12,4156.4,4156.1,0.02406101]
[1759263400929,0.001,4156.6,4156.1,0.02406101]
[1759263400930,0.001,4156.6,4156.2,0.8315]
[1759263401082,0.001,4156.6,4156.3,2.772]
[1759263401412,0.001,4156.6,4156.3,3.4346]
[1759263401615,0.001,4156.6,4156.4,0.6626]
[1759263402000,0.001,4156.6,4156.5,0.7826]
[1759263403316,0.001,4156.6,4156.5,0.12]
[1759263403616,2.65121244,4156.6,4156.5,0.12]
[1759263403806,3.11321244,4156.6,4156.5,0.12]
[1759263404007,2.65121244,4156.6,4156.5,0.12]
[1759263404621,0.2454,4156.6,4156.5,0.12]
[1759263405310,2.65121244,4156.6,4156.5,0.12]
[1759263405495,2.40681244,4156.6,4156.5,0.12]
[1759263405818,2.40587032,4156.5,4156.3,2.772]
[1759263406016,0.7064,4156.4,4156.3,2.772]
[1759263406197,3.1123282,4156.4,4156.3,2.772]
[1759263410052,0.121,4156.6,4156.3,2.772]
[1759263410205,2.40587032,4156.5,4156.4,0.6626]
[1759263410408,2.40587032,4156.5,4156.4,0.2279]
[1759263410628,2.52681524,4156.6,4156.3,2.772]
[1759263411020,0.001,4156.6,4156.4,0.6626]
[1759263411252,2.40685859,4156.6,4156.4,0.6626]
[1759263411951,2.40587032,4156.5,4156.4,0.6626]
[1759263412309,2.40587032,4156.5,4156.4,0.2279]
[1759263412541,2.40587032,4156.5,4156.4,0.6626]
[1759263412841,2.40587032,4156.5,4156.4,0.2279]
[1759263413810,0.001,4156.6,4156.4,0.2279]
[1759263413811,0.001,4156.6,4156.4,0.6626]
[1759263414123,0.001,4156.6,4156.5,1.0301187]
[1759263414455,0.001,4156.6,4156.5,1.00606]
[1759263415840,0.001,4156.6,4156.5,3.53193032]
[1759263416038,0.001,4156.6,4156.5,1.12606]
[1759263416842,0.001,4156.6,4156.5,3.53193032]
[1759263417020,0.001,4156.6,4156.5,1.12606]
[1759263417442,0.001,4156.6,4156.5,3.53193032]
[1759263417643,0.001,4156.6,4156.5,1.12606]
[1759263417844,0.001,4156.6,4156.5,3.53193032]
[1759263418157,0.001,4156.6,4156.5,1.12606]
[1759263418931,0.001,4156.6,4156.5,3.53193032]
[1759263419130,0.001,4156.6,4156.5,1.12606]
[1759263419723,0.001,4156.6,4156.5,3.62806]
[1759263420331,0.001,4156.6,4156.5,33.36750502]
[1759263420545,0.001,4156.6,4156.5,36.60713532]
[1759263421443,0.001,4157.1,4157.0,3.19758094]
[1759263421645,0.001,4157.1,4157.0,39.16880456]
[1759263421945,0.001,4157.5,4157.4,2.40534949]
[1759263422151,0.001,4157.5,4157.4,35.17534949]
[1759263422453,0.001,4157.5,4157.4,38.23794949]
[1759263423159,0.001,4157.5,4157.4,39.02994949]
[1759263423351,0.001,4157.5,4157.4,11.42725492]
[1759263423552,0.001,4157.5,4157.4,9.02994949]
[1759263423852,0.001,4157.5,4157.4,23.95690849]
[1759263424030,0.001,4157.5,4157.4,23.57927649]
[1759263424424,0.001,4157.5,4157.4,24.38548849]
[1759263425526,0.001,4157.5,4157.4,8.01004949]
[1759263425746,0.001,4157.5,4157.4,6.21154743]
[1759263425951,0.7074,4157.5,4157.4,2.77]
[1759263426454,0.001,4157.5,4157.4,2.77]
[1759263426655,0.7074,4157.5,4157.4,2.769]
[1759263427156,3.11269164,4157.5,4157.4,2.769]
[1759263428442,0.7074,4157.5,4157.4,2.769]
[1759263428648,3.11269164,4157.5,4157.4,2.769]
[1759263430434,3.23269164,4157.5,4157.4,2.769]
[1759263433173,5.63269164,4157.5,4157.4,2.769]
[1759263434639,5.51269164,4157.5,4157.4,2.769]
[1759263436458,4.80629164,4157.5,4157.4,2.769]
[1759263436776,5.03989164,4157.5,4157.4,2.769]
[1759263437441,5.50479164,4157.5,4157.4,2.769]
[1759263437742,2.401,4157.5,4157.4,2.769]
[1759263437947,0.001,4157.5,4157.4,2.769]
[1759263438944,2.40629164,4157.5,4157.4,2.769]
[1759263440079,3.07649164,4157.5,4157.4,2.769]
[1759263442581,2.64879164,4157.5,4157.4,2.769]
[1759263443081,0.001,4157.5,4157.4,2.769]
[1759263443251,2.40629164,4157.5,4157.4,2.769]
[1759263444489,0.001,4157.5,4157.4,3.012]
[1759263444696,0.121,4157.5,4157.4,2.769]
[1759263445187,2.52629164,4157.5,4157.4,2.769]
[1759263445364,0.121,4157.5,4157.4,3.4467]
[1759263445568,0.001,4157.5,4157.4,6.31671949]
[1759263445761,0.001,4157.5,4157.4,8.55905349]
[1759263448895,0.001,4157.5,4157.4,10.95905349]
[1759263450291,0.001,4157.5,4157.4,8.55905349]
[1759263451101,0.001,4157.5,4157.4,10.95905349]
[1759263452037,0.001,4157.5,4157.4,20.55021249]
[1759263452200,0.001,4157.5,4157.4,18.00007049]
[1759263453016,0.001,4157.5,4157.4,17.90775649]
[1759263453336,0.001,4157.5,4157.4,15.89021049]
[1759263453632,0.001,4157.5,4157.4,20.12021049]
[1759263453798,0.001,4157.5,4157.4,17.72021049]
[1759263453994,0.001,4157.5,4157.4,19.62021049]
[1759263454310,0.001,4157.5,4157.4,17.60799249]
[1759263454633,0.001,4157.5,4157.4,19.39702449]
[1759263454833,0.001,4157.5,4157.4,21.10702449]
[1759263455200,0.001,4157.5,4157.4,21.58506302]
[1759263455400,0.001,4157.5,4157.4,22.99435102]
[1759263455919,0.001,4157.5,4157.4,19.87506302]
[1759263456411,0.2435,4157.5,4157.4,9.84367]
[1759263456736,0.001,4157.5,4157.4,12.24901949]
[1759263458398,0.001,4157.5,4157.4,12.49201949]
[1759263458642,0.001,4157.5,4157.4,12.92671949]
[1759263459623,0.001,4157.5,4157.4,8.69671949]
[1759263461500,0.001,4157.5,4157.4,20.95887449]
[1759263461719,0.001,4157.5,4157.4,16.03461149]
[1759263464001,0.001,4157.5,4157.4,15.66340149]
[1759263464207,0.001,4157.5,4157.4,8.01901949]
[1759263465838,0.2325,4157.5,4157.4,8.01901949]
[1759263466233,0.001,4157.5,4157.4,8.13901949]
[1759263466713,0.001,4157.5,4157.4,5.73367]
[1759263466714,0.6884,4157.5,4157.4,5.73367]
[1759263466915,0.6884,4157.5,4157.4,8.13901949]
[1759263468470,0.6884,4157.5,4157.4,5.73367]
[1759263469368,0.2325,4157.5,4157.4,8.13901949]
[1759263469873,0.001,4157.5,4157.4,8.13901949]
[1759263471872,0.001,4158.0,4157.9,2.40506024]
[1759263472073,0.001,4158.0,4157.9,7.51250524]
[1759263472263,0.001,4158.0,4157.9,5.41956024]
[1759263473074,0.001,4158.0,4157.9,2.767]
[1759263473766,0.001,4158.0,4157.9,5.17206024]
[1759263473967,0.001,4158.0,4157.9,6.00022924]
[1759263474165,0.001,4158.0,4157.9,3.595169]
[1759263474367,0.6884,4158.0,4157.9,3.595169]
[1759263474580,0.6884,4158.0,4157.9,2.767]
[1759263475598,0.001,4158.0,4157.9,5.17206024]
[1759263475760,0.001,4158.0,4157.9,5.87646024]
[1759263476593,0.001,4158.0,4157.9,27.58697724]
[1759263476773,0.001,4158.0,4157.9,25.87502824]
[1759263476969,0.001,4158.0,4157.9,27.96933367]
[1759263477182,0.001,4158.0,4157.9,23.02268967]
[1759263477491,0.001,4158.0,4157.9,12.61405143]
[1759263477679,0.001,4158.0,4157.9,8.25998443]
[1759263477882,0.001,4158.0,4157.9,7.029782]
[1759263478085,0.001,4158.0,4157.9,6.195228]
[1759263478691,0.001,4158.0,4157.9,2.767]
[1759263479072,0.001,4158.0,4157.5,3.8544482]
[1759263479385,0.2325,4158.0,4157.6,17.067689]